[Event "1st Bella Italia International 2022"]
[Site "Lignano"]
[Date "2022.08.18"]
[Round "2.5"]
[White "Lapiccirella, Daniele"]
[Black "Das, Sayantan"]
[Result "0-1"]
[ECO "E81"]
[WhiteElo "2173"]
[BlackElo "2449"]
[Annotator "TA"]
[PlyCount "82"]
[EventDate "2022.08.18"]
[EventCountry "ITA"]
[SourceTitle "playchess.com"]
[Source "ChessBase"]
[SourceQuality "1"]
[TimeControl "5400+30"]

{[%evp 17,82,26,47,41,28,33,50,41,27,34,38,18,62,48,94,97,120,130,124,121,106,35,158,160,145,150,160,160,202,208,222,231,224,197,202,187,194,188,236,27,227,0,20,-65,-65,-53,-40,-49,-44,-136,-134,-127,0,-160,-152,-145,-165,-147,-94,-219,-215,-214,-216,-216,-172,-347,-323]} 1. d4 {[%emt 0:00:03]} Nf6 {[%emt 0:00:36]} 2. c4 {[%emt 0:00:05]} g6 {[%emt 0:00:05]} 3. Nc3 {[%emt 0:00:05]} Bg7 {[%emt 0:00:08]} 4. e4 {[%emt 0:00:06]} d6 {[%emt 0:00:06]} 5. f3 {[%emt 0:00:05]} O-O {[%emt 0:00:22]} 6. Be3 {[%emt 0:00:05]} c5 {[%emt 0:02:17]} 7. Nge2 {[%emt 0:00:10]} Nc6 {[%emt 0:00:13]} 8. d5 {[%emt 0:00:23]} Ne5 {[%emt 0:00:40]} 9. Ng3 {[%emt 0:00:06]} h5 {[%emt 0:00:19]} 10. Be2 {[%emt 0:00:34] E81: King's Indian: Sämisch: 6th move deviations (including 6 Be3 c6).} h4 {[%emt 0:00:07]} 11. Nf1 {[%emt 0:00:07]} e6 {[%emt 0:00:10]} 12. Nd2 {[%emt 0:02:08] White is slightly better.} exd5 {[%emt 0:00:41]} 13. cxd5 {[%emt 0:00:08]} (13. Nxd5 Nxd5 14. cxd5 f5 $15) 13... a6 {[%emt 0:00:36]} 14. a4 {[%emt 0:00:41]} Bd7 {[%emt 0:01:01][%cal Ob7b5]} 15. O-O {[%emt 0:01:19] Strongly threatening h3.} h3 {[%emt 0:00:47]} (15... b5 $14 {might be stronger.}) 16. g4 $1 $16 {[%emt 0:11:17]} Qc8 {[%emt 0:12:37] [#]} 17. Kh1 $146 {[%emt 0:00:54]} ({Predecessor:} 17. a5 Nh7 18. Na4 Bxa4 19. Qxa4 f5 20. gxf5 gxf5 21. f4 Ng6 22. Nc4 Qc7 23. Bh5 {1-0 (39) Kotau,A (2227)-Ludvik,T (2346) Bratislava 2019}) 17... Rb8 {[%emt 0:12:01]} 18. Rg1 {[%emt 0:03:45] g5 is the strong threat.} b5 {[%emt 0:09:19]} 19. g5 {[%emt 0:05:35]} (19. axb5 $16 axb5 20. Qf1) 19... Ne8 {[%emt 0:01:45]} (19... Nh5 $14) 20. f4 $1 {[%emt 0:00:55]} Nc4 {[%emt 0:01:09]} 21. Bxc4 {[%emt 0:00:49]} (21. Nxc4 $6 bxc4 22. Ra2 (22. Bxc4 Rxb2 23. Qd3 Nc7 $11) 22... Rb4 $11) 21... bxc4 {[%emt 0:00:02]} 22. Nxc4 {[%emt 0:00:23]} a5 {[%emt 0:05:04]} 23. Rc1 {[%emt 0:07:30]} Qa6 {[%emt 0:07:40]} 24. b3 {[%emt 0:01:09]} Qb7 {[%emt 0:00:48]} 25. Nd2 {[%emt 0:00:20]} (25. Nxa5 Qb4 26. Nc4 Bxc3 $17) 25... Nc7 {[%emt 0:04:39]} 26. Rg3 {[%emt 0:02:29]} Rfe8 {[%emt 0:01:53]} 27. Qf3 {[%emt 0:09:16]} Qb4 {[%emt 0:06:26]} 28. Ne2 {[%emt 0:01:23]} (28. Ncb1 $18) 28... Re7 $2 {[%emt 0:13:28]} (28... Nxd5 $1 $11 {and Black has nothing to worry.} 29. Rc4 (29. exd5 Rxe3 30. Qxe3 Re8 $11) 29... Qa3 30. exd5 Rxb3 31. Nxb3 Qxb3) 29. Nc4 $2 {[%emt 0:12:35]} (29. f5 $1 $18 {[%cal Rf5f6]} gxf5 30. g6) 29... Qxb3 $11 {[%emt 0:06:17]} 30. Nxd6 {[%emt 0:00:16] [#]} (30. e5 $11) 30... Nxd5 $1 $15 {[%emt 0:04:19] Black is more active.} 31. Bxc5 {[%emt 0:03:07]} Qxf3+ {[%emt 0:03:07]} 32. Rxf3 {[%emt 0:00:07]} Bg4 $1 {[%emt 0:01:44]} 33. Rf2 {[%emt 0:00:07]} (33. Rg3 $1 $15 Bxe2 34. exd5) 33... Bxe2 {[%emt 0:01:20] A strong pair of Bishops.} 34. exd5 {[%emt 0:01:37][%cal Od6f5] [#]} Bg4 {[%emt 0:01:33] Inhibits Nf5.} (34... Rc7 $1 $17 {[%cal Rc7c5]} 35. Rxe2 Rxc5 $1) 35. Nb5 $2 {[%emt 0:03:21]} (35. Kg1 $11) 35... Rc8 $17 {[%emt 0:00:23][%cal Oc8c5] Threatens to win with ...Rxc5!} 36. Kg1 {[%emt 0:01:01] [#]} Re4 $1 {[%emt 0:01:21]} 37. Rd2 {[%emt 0:01:36]} ({Avoid the trap} 37. Nd6 $2 {[#]} Rxc5 $1 {[%mdl 512]} 38. Rb1 (38. Rxc5 $2 {is a self mate.} Re1+ 39. Rf1 Bd4+ 40. Kh1 Rxf1#) 38... Rxa4 $19) 37... Rxf4 {[%emt 0:00:43]} ({Better is} 37... Rxa4 38. Nd6 Rb8) 38. d6 {[%emt 0:01:33]} (38. Na7 $17 Rc7 39. Nc6 Rxa4 40. Be7) 38... Bd7 {[%emt 0:00:28]} 39. Nc7 {[%emt 0:00:53]} Rg4+ {[%emt 0:01:45]} ({Weaker is} 39... Bxa4 40. Nd5 Rg4+ 41. Kf2) 40. Kf1 {[%emt 0:00:35]} Rxg5 {[%emt 0:00:43]} 41. Bf2 $2 {[%emt 0:03:33]} (41. Nd5 {is a better defense.} Rf5+ 42. Ke1 Re8+ 43. Ne7+ Kf8 44. Rc4) 41... Bxa4 {[%emt 0:01:30] Quite a comeback for Black.  Weighted Error Value: White=0.54/Black=0.22 (precise)} 0-1

[Event "1st Bella Italia International 2022"]
[Site "Lignano"]
[Date "2022.08.18"]
[Round "2.6"]
[White "Jonkman, Harmen"]
[Black "Della Pietra, Andrea"]
[Result "1/2-1/2"]
[ECO "B07"]
[WhiteElo "2373"]
[BlackElo "2172"]
[Annotator "TA"]
[PlyCount "42"]
[EventDate "2022.08.18"]
[EventCountry "ITA"]
[SourceTitle "playchess.com"]
[Source "ChessBase"]
[SourceQuality "1"]
[TimeControl "5400+30"]

{[%evp 9,42,18,12,5,24,18,16,-6,11,-7,0,-218,-212,-235,-260,-247,-116,-196,-173,-163,-167,-370,-249,-238,-244,-368,-373,-376,-363,-341,-235,-483,-481,-435,-401]} 1. e4 {[%emt 0:02:39]} d6 {[%emt 0:00:20][%cal Bd7d6,Bd6d5,Bd5d4][%mdl 32]} 2. f4 {[%emt 0:04:06]} d5 {[%emt 0:03:07]} 3. Nc3 {[%emt 0:04:21][%cal Bb1c3,Bc3e2,Be2g3,Bg3f1][%mdl 32]} d4 {[%emt 0:06:56]} 4. Nce2 {[%emt 0:00:19]} c5 {[%emt 0:00:28]} 5. Ng3 {[%emt 0:03:36]} Nf6 {[%emt 0:08:35]} 6. Bc4 {[%emt 0:03:39] [#] B07: Pirc Defence: Miscellaneous Systems.} h5 $146 {[%emt 0:21:45] Hoping for ...h4.} ({Predecessor:} 6... Qa5 7. Nf3 Nc6 8. a3 Bg4 9. O-O b5 10. Bxf7+ Kxf7 11. e5 h5 12. exf6 exf6 {½-½ (22) Juenger,T (1575)-Rusch,J (1425) Willingen 2009}) 7. d3 {[%emt 0:06:52]} h4 {[%emt 0:00:28]} 8. Nf1 {[%emt 0:01:43] The position is equal.} Bg4 {[%emt 0:01:04]} 9. Qd2 {[%emt 0:03:32]} Nc6 {[%emt 0:01:53]} 10. Qf2 $2 {[%emt 0:08:46]} (10. h3 $11 {and White has nothing to worry.} Bd7 11. a4) 10... b5 $1 $19 {[%emt 0:09:02]} 11. h3 {[%emt 0:07:28]} bxc4 {[%emt 0:01:44]} 12. hxg4 {[%emt 0:00:08] [#]} Qa5+ {[%emt 0:06:55]} (12... Nxg4 13. Qe2 Nb4 14. dxc4) (12... cxd3 $2 13. cxd3 Nb4 14. Qd2) (12... Nb4 $1 $19 13. Qd2 Qa5) 13. Ke2 {[%emt 0:12:11]} (13. Kd1 $17 {might work better.}) 13... cxd3+ {[%emt 0:03:35]} ({Stronger than} 13... Nxg4 14. Qf3 Ne3 15. e5 (15. Nxe3 dxe3 16. Bxe3 Rb8 $15) 15... cxd3+ 16. cxd3 $15) 14. cxd3 {[%emt 0:00:03]} c4 $1 {[%emt 0:08:12][%cal Bc5c4,Bc4d3][%mdl 32]} ({Worse is} 14... Nxg4 15. Qf3 Ne3 16. e5 $15 (16. Nxe3 dxe3 17. Bxe3 Qa6 $15)) 15. Rxh4 $2 {[%emt 0:02:10]} (15. Qf3) 15... cxd3+ {[%emt 0:00:33]} 16. Kf3 {[%emt 0:00:06]} Rxh4 {[%emt 0:02:39]} 17. Qxh4 {[%emt 0:00:03] [#]} (17. Bd2 {only move.} Qb5 18. Qxh4) 17... g5 $1 {[%emt 0:04:39]} 18. Qg3 {[%emt 0:02:38]} e6 {[%emt 0:10:13] Threatens to win with ...Bb4.} 19. Bd2 {[%emt 0:02:41]} Bb4 {[%emt 0:00:46]} 20. Rd1 {[%emt 0:01:50]} (20. Bxb4 {was called for.} Qxb4 21. fxg5 Qxb2 22. Rd1) 20... Bxd2 {[%emt 0:02:54]} 21. Nxd2 {[%emt 0:01:06]} gxf4 {[%emt 0:00:06][%mdl 32768] Weighted Error Value: White=0.84/Black=0.21 (precise) . An unexpected result.} 1/2-1/2

[Event "1st Bella Italia International 2022"]
[Site "Lignano"]
[Date "2022.08.18"]
[Round "2.7"]
[White "Zuttioni, Federico"]
[Black "Zeller, Frank"]
[Result "0-1"]
[ECO "C91"]
[WhiteElo "2161"]
[BlackElo "2356"]
[Annotator "TA"]
[PlyCount "136"]
[EventDate "2022.08.18"]
[EventCountry "ITA"]
[SourceTitle "playchess.com"]
[Source "ChessBase"]
[SourceQuality "1"]
[TimeControl "5400+30"]

{[%evp 29,136,0,0,0,0,0,9,-18,-14,-133,0,-13,-17,-19,-20,-25,-16,-19,-4,-19,-12,-13,0,-19,-29,-102,-95,-84,-62,-100,-105,-415,-420,-426,-420,-429,-412,-412,-425,-410,-414,-417,-414,-454,-452,-424,-411,-562,-543,-542,-526,-476,-391,-399,-302,-300,-299,-432,-186,-164,-168,-182,-157,-191,-113,-229,-120,-171,-54,-262,-256,-385,-230,-243,-216,-278,-244,-247,-241,-234,241,246,397,39,107,116,108,-20,-22,-62,-10,-117,-123,-89,0,-111,-71,-90,-78,-288,-303,-277,-247,-481,-453,-412,-398,-454,-405]} 1. e4 {[%emt 0:14:33] Solozhenkin,E} e5 {[%emt 0:00:31]} 2. Nf3 {[%emt 0:00:17]} Nc6 {[%emt 0:00:12]} 3. Bb5 {[%emt 0:00:11][%cal Bf1b5,Bb5a4,Ba4b3][%mdl 32]} a6 {[%emt 0:00:22]} 4. Ba4 {[%emt 0:00:08]} Nf6 {[%emt 0:00:46]} 5. O-O {[%emt 0:00:19]} Be7 {[%emt 0:00:38]} 6. Re1 {[%emt 0:00:14]} b5 {[%emt 0:00:18]} 7. Bb3 {[%emt 0:00:08]} d6 {[%emt 0:00:19]} 8. c3 {[%emt 0:00:12]} O-O {[%emt 0:00:16]} 9. d4 {[%emt 0:00:12][%cal Bd2d4,Bd4d5][%mdl 32]} Bg4 {[%emt 0:01:06]} 10. d5 {[%emt 0:00:22]} Na5 {[%emt 0:01:43]} 11. Bc2 {[%emt 0:00:13]} Qc8 {[%emt 0:02:46]} 12. h3 {[%emt 0:00:48]} Bd7 {[%emt 0:00:32]} 13. Nbd2 {[%emt 0:01:02]} c6 {[%emt 0:00:30]} 14. dxc6 {[%emt 0:05:35]} Qxc6 {[%emt 0:02:49]} 15. Nf1 {[%emt 0:03:35]} Nc4 {[%emt 0:03:04]} 16. a4 {[%emt 0:09:38] C91: Closed Ruy Lopez: 7...d6 8 c3 0-0 9 d4.} Rac8 {[%emt 0:08:49]} 17. Ng3 {[%emt 0:32:15]} Rfe8 {[%emt 0:05:30]} 18. Ra2 {[%emt 0:02:45] The position is equal.} Be6 {[%emt 0:08:21][%cal Oc4e3] White should prevent ...Ne3!} 19. Ng5 {[%emt 0:06:39] [#]} (19. Ra1 $11 {remains equal.}) 19... Bd7 $146 {[%emt 0:14:06] Black is more active.} (19... Ne3 $1 $17 {[%cal Re3d1][%mdl 512]} 20. axb5 (20. Bxe3 Bxa2) 20... axb5 $1) ({Predecessor:} 19... Ne3 20. Rxe3 Bxa2 21. axb5 axb5 22. b3 h6 23. h4 hxg5 24. hxg5 Nh7 25. Nf5 g6 {0-1 (39) Yemelin,V (2485)-Solozhenkin,E (2500) St Petersburg 1998 CBM 065 [Solozhenkin,E]}) 20. b3 {[%emt 0:02:28]} Nb6 $1 {[%emt 0:00:37][%cal Bc4b6,Bb6a8,Ba8c7,Bc7e6,Be6f4][%mdl 32]} 21. a5 {[%emt 0:00:18]} Na8 {[%emt 0:00:11]} 22. Bd2 {[%emt 0:02:58]} h6 {[%emt 0:00:25]} 23. Nf3 {[%emt 0:00:11][%cal Bg5f3,Bf3h4,Bh4f5][%mdl 32]} Nc7 {[%emt 0:04:01]} 24. Nh4 {[%emt 0:01:26]} Ne6 {[%emt 0:06:50]} 25. Nhf5 {[%emt 0:01:35]} Bf8 {[%emt 0:03:51]} 26. Qf3 {[%emt 0:02:34][%cal Of5h6] Inhibits Nf4.} Nf4 {[%emt 0:02:49]} 27. Bxf4 {[%emt 0:05:43]} (27. Rd1 $11) 27... exf4 $17 {[%emt 0:00:04]} 28. Qxf4 {[%emt 0:00:10]} Qxc3 {[%emt 0:00:27]} 29. Re3 {[%emt 0:02:39]} Qe5 {[%emt 0:11:14]} 30. Qh4 {[%emt 0:00:19][%mdl 8192]} (30. Rf3 $17) 30... g5 $19 {[%emt 0:05:56][%cal Bg7g5,Bg5h4][%mdl 32]} 31. Nxh6+ {[%emt 0:03:33]} Kh7 {[%emt 0:00:39]} 32. Nxf7+ {[%emt 0:00:54]} gxh4 {[%emt 0:00:11]} 33. Nxe5 {[%emt 0:00:09]} dxe5 {[%emt 0:00:14]} (33... Rxe5 $2 34. Ne2 $19) 34. Nf1 {[%emt 0:02:52]} Bc5 {[%emt 0:03:24]} 35. Rd3 {[%emt 0:00:20]} Bc6 {[%emt 0:00:31]} 36. Nd2 {[%emt 0:00:30]} Rf8 {[%emt 0:01:12]} 37. Nf3 {[%emt 0:00:39]} Kh6 {[%emt 0:06:48]} 38. Nxe5 {[%emt 0:00:33]} Nxe4 {[%emt 0:02:31]} 39. Ng4+ {[%emt 0:00:22]} Kg5 {[%emt 0:00:18][%cal Re4f2]} 40. Bd1 {[%emt 0:00:38]} Rce8 {[%emt 0:01:16][%cal Oe4f2]} 41. Bf3 {[%emt 0:00:32]} Ba8 {[%emt 0:00:59]} 42. Rc2 {[%emt 0:00:25]} Ba7 {[%emt 0:00:33][%cal Oe4f2] aiming for ...Nxf2!} 43. Rd7 {[%emt 0:00:24] [#]} (43. Rd1 $142) 43... Bb8 {[%emt 0:01:32]} (43... Ng3 $142 $1 {( -> ...Re1+)} 44. Kh2 (44. Rxa7 $2 Re1+ 45. Kh2 Rh1#) 44... Re1 $1) 44. Rg7+ {[%emt 0:00:26]} Kf4 {[%emt 0:00:02][%cal Oe4d2]} 45. Ne3 {[%emt 0:00:44]} Ke5 {[%emt 0:00:59]} (45... Nxf2 46. Kxf2 (46. Rxf2 $2 Kxe3 47. Rf1 Bxf3 $19) 46... Ke5 47. Rg4 $16 (47. Ng4+ Kd6 $16)) 46. Rg4 {[%emt 0:00:30]} Rf4 {[%emt 0:00:34]} (46... Rc8 $1 $19 {Hoping for ...Rxc2.} 47. Rxh4 Rxc2 48. Nxc2 Rc8) 47. Rg7 {[%emt 0:00:30]} (47. Rg6 $17 Bb7 48. Rg7) 47... Bd6 {[%emt 0:01:42]} (47... Kf6 $1 $19 {[%cal Rf6g7]} 48. Rd7 Kg6) 48. Ng4+ {[%emt 0:00:28]} (48. Ra7 Rxf3 49. gxf3 Ng5 50. Rxa6 Bxf3) (48. Rc1 $17) 48... Kf5 {[%emt 0:00:52]} (48... Kd4 $1 $19 {[%cal Rd4d3] And now ...Kd3 would win.} 49. Ra7 (49. Rd7 Re6 $17) 49... Bd5 50. Rxa6 Bb4) 49. Rf7+ $2 {[%emt 0:00:19]} (49. Ra7 $15) 49... Kg6 $1 {[%emt 0:00:09]} 50. Ra7 {[%emt 0:00:19] [#]} (50. Rd7 $142 Bb8 51. Ne3) 50... Ng5 {[%emt 0:01:08]} 51. Be2 {[%emt 0:00:52]} (51. Rxa6 Re1+ 52. Kh2 Rf6+ 53. Rxd6 Nxf3+ 54. gxf3 Rxd6 55. Ne5+ Rxe5 56. Rc8 Bxf3 57. Rg8+ Kf7 58. Rg4 Bxg4 59. hxg4 Rd2 60. Kg2 Ree2 61. g5 Kg6 62. Kh3 Kxg5 63. Kh2 Rxf2+ 64. Kg1 h3 65. b4 h2+ 66. Kh1 Rf1#) 51... Rd4 $1 {[%emt 0:01:23][%cal Oe8e2] ...Rxe2! is the strong threat.} 52. Ne3 {[%emt 0:00:28]} Be4 {[%emt 0:00:00]} 53. Rc1 {[%emt 0:00:23]} Re6 {[%emt 0:00:00]} 54. Rc8 {[%emt 0:00:37] Prevents Bb8.} Be7 $4 {[%emt 0:00:16][%mdl 8192]} (54... Rd2 $19 55. Rg8+ Kf6 56. Ng4+ Kf5) 55. Bg4 $18 {[%emt 0:00:34]} Re5 {[%emt 0:00:08]} (55... Bd5 {is a better defense.} 56. Bxe6 Bxe6) 56. Rxa6+ $2 {[%emt 0:00:12]} (56. f4 $18 Bb7 57. fxe5 Bxc8 58. Bxc8) 56... Kf7 {[%emt 0:00:23]} (56... Rd6 $14 57. Ra7 Rf6) 57. Bh5+ $16 {[%emt 0:00:22]} Kg7 {[%emt 0:00:04][%cal Og5h3] [#]} 58. Rc7 {[%emt 0:00:22]} ({White has to play} 58. Ra7 $1 $16 {Threatens to win with f4.} Bg6 59. Bxg6 Kxg6 60. a6) 58... Kf8 $36 {[%emt 0:00:21][%cal Og5h3][%mdl 2048] Black is more active. Really sharp!} 59. Bg4 {[%emt 0:00:56]} Bd6 {[%emt 0:01:45]} (59... Bd8 $15 60. Rc1 Nf7) 60. Rxd6 {[%emt 0:00:39]} Rxd6 $17 {[%emt 0:00:02]} 61. f4 {[%emt 0:00:10][%csl LRe5,LRg5] [#]} Rd3 {[%emt 0:00:47]} 62. Nf1 {[%emt 0:00:49]} (62. fxe5 $11 Rxe3 63. e6) 62... Re7 {[%emt 0:00:40]} 63. Rc8+ {[%emt 0:00:08]} Re8 {[%emt 0:00:03]} 64. fxg5 $2 {[%emt 0:00:51]} (64. Rxe8+ $17 {is the only way for White.} Kxe8 65. fxg5) 64... Rxc8 $19 {[%emt 0:00:01]} 65. Bxc8 {[%emt 0:00:10]} Rxb3 {[%emt 0:00:02]} 66. a6 $2 {[%emt 0:00:51]} (66. Nd2 {was called for.} Rc3 67. Bg4 (67. Nxe4 $2 Rxc8 68. Kf2 Ra8 $19)) 66... Ra3 {[%emt 0:01:07]} 67. Nd2 {[%emt 0:00:31]} Bd3 {[%emt 0:00:06]} 68. g6 {[%emt 0:00:26]} b4 {[%emt 0:00:06] What a fight!  Weighted Error Value: White=0.65/Black=0.40} 0-1

[Event "1st Bella Italia International 2022"]
[Site "Lignano"]
[Date "2022.08.18"]
[Round "2.8"]
[White "Lumachi, Gabriele"]
[Black "Player, Edmund C"]
[Result "1-0"]
[ECO "D28"]
[WhiteElo "2355"]
[BlackElo "2202"]
[Annotator "TA"]
[PlyCount "74"]
[EventDate "2022.08.18"]
[EventCountry "ITA"]
[SourceTitle "playchess.com"]
[Source "ChessBase"]
[SourceQuality "1"]
[TimeControl "5400+30"]

{[%evp 16,74,39,27,31,38,47,26,16,23,18,20,41,43,37,37,84,89,103,112,89,0,0,0,0,0,0,0,67,59,68,74,67,69,58,68,55,59,58,57,53,66,77,87,80,74,81,71,80,94,181,181,174,174,173,173,302,312,29964,29963,5025]} 1. d4 {[%emt 0:00:04]} d5 {[%emt 0:00:05]} 2. c4 {[%emt 0:00:05]} dxc4 {[%emt 0:00:05]} 3. Nf3 {[%emt 0:00:06]} Nf6 {[%emt 0:00:08]} 4. e3 {[%emt 0:00:07]} a6 {[%emt 0:00:07]} 5. Bxc4 {[%emt 0:00:06]} b5 {[%emt 0:00:10]} 6. Bd3 {[%emt 0:00:10]} Bb7 {[%emt 0:00:12]} 7. O-O {[%emt 0:00:10]} e6 {[%emt 0:00:14]} 8. Qe2 {[%emt 0:00:05]} c5 {[%emt 0:00:59]} 9. dxc5 {[%emt 0:00:45]} Nc6 {[%emt 0:02:46] D28: Queen's Gambit Accepted: Classical main line: 7 Qe2 with early ...Nc6.} 10. Rd1 {[%emt 0:01:29][%cal Ob2b4] Strongly threatening b4!} Qc7 {[%emt 0:00:52]} 11. a3 {[%emt 0:11:05] Prevents Nb4. And now b4 would win.} Bxc5 {[%emt 0:01:44] White has an edge.} 12. b4 {[%emt 0:00:11]} Bd6 {[%emt 0:05:27]} 13. Bb2 {[%emt 0:01:35]} Ng4 {[%emt 0:23:30][%cal Rd6h2]} 14. h3 {[%emt 0:05:17]} (14. Bxg7 Rg8 15. Bb2 Bxh2+ 16. Kf1 Nce5 $17) 14... Nge5 {[%emt 0:01:54]} 15. Be4 {[%emt 0:00:41] [#]} f5 $146 {[%emt 0:13:07]} (15... Nxf3+ $14 16. Bxf3 (16. Qxf3 O-O $11) 16... O-O) ({Predecessor:} 15... Nxf3+ 16. Qxf3 f5 17. Bxc6+ Bxc6 18. Qh5+ g6 19. Qh6 Bf8 20. Qh4 Bg7 21. Bxg7 Qxg7 {½-½ (33) Alexandrova,O (2424)-Navarro Lopez Menchero,D (2135) Linares 2014}) 16. Bxc6+ $16 {[%emt 0:11:08]} Nxc6 {[%emt 0:08:23]} 17. Ng5 {[%emt 0:01:36]} Qe7 {[%emt 0:05:06]} 18. Rxd6 {[%emt 0:16:01]} Qxd6 $11 {[%emt 0:08:08]} 19. Bxg7 {[%emt 0:00:28]} Rg8 {[%emt 0:00:17]} 20. Qh5+ {[%emt 0:01:37]} Kd7 {[%emt 0:00:19]} 21. Bf6 {[%emt 0:03:33]} Raf8 {[%emt 0:12:14] [#]} (21... Qf8 $11 22. Nxh7 (22. Qxh7+ Ne7 $11) 22... Qe8) 22. Nc3 $1 $14 {[%emt 0:01:55] Rd1 is the strong threat.} Kc8 {[%emt 0:01:12]} 23. Rd1 {[%emt 0:11:53]} Qc7 {[%emt 0:00:55]} 24. Nxe6 {[%emt 0:01:32][%mdl 64] Discovered Attack, Double Attack. 0x0.0016828674b3dp-1022s more active pieces.} Qf7 {[%emt 0:00:46]} 25. Qxf7 {[%emt 0:01:25] Really sharp!} Rxf7 {[%emt 0:00:05]} 26. Bh4 {[%emt 0:01:01]} Ne5 {[%emt 0:11:05] White must now prevent ...Nf3+.} 27. Bg3 {[%emt 0:03:06]} Nc4 {[%emt 0:00:01]} 28. Rc1 $40 {[%emt 0:07:08][%cal Oc3a4][%mdl 128] White is up to no good.} Rd7 {[%emt 0:01:02] [#]} 29. Na4 $1 {[%emt 0:03:26][%cal Ra4b6]} Bc6 {[%emt 0:00:45]} 30. Nd4 {[%emt 0:06:27] Pair of Knights!} f4 {[%emt 0:02:18] [#]} 31. Bxf4 {[%emt 0:00:44]} Rxg2+ {[%emt 0:00:25]} 32. Kf1 {[%emt 0:00:08]} Rg6 {[%emt 0:00:29] [#]} (32... Nd2+ $16 33. Ke2 bxa4) 33. Nb6+ $3 $18 {[%emt 0:01:37][%mdl 512]} Nxb6 {[%emt 0:00:09]} 34. Nxc6 {[%emt 0:00:09]} Nc4 {[%emt 0:00:55]} 35. Ne5 {[%emt 0:00:29]} Rc7 {[%emt 0:00:55]} (35... Rd2 $142 36. Nxg6 hxg6) 36. Nxg6 {[%emt 0:02:52]} Nxe3+ $2 {[%emt 0:00:23]} (36... Nd2+ $18 37. Ke2 Rxc1) 37. Bxe3 {[%emt 0:00:12]} Rxc1+ {[%emt 0:00:38] Weighted Error Value: White=0.04 (flawless) /Black=0.41} 1-0

[Event "1st Bella Italia International 2022"]
[Site "Lignano"]
[Date "2022.08.18"]
[Round "2.9"]
[White "Haller, Quentin"]
[Black "Priyanka Nutakki"]
[Result "0-1"]
[ECO "D00"]
[WhiteElo "1995"]
[BlackElo "2308"]
[Annotator "TA"]
[PlyCount "56"]
[EventDate "2022.08.18"]
[EventCountry "ITA"]
[SourceTitle "playchess.com"]
[Source "ChessBase"]
[SourceQuality "1"]
[TimeControl "5400+30"]

{[%evp 9,56,7,47,0,0,0,0,0,6,-13,0,0,0,-34,-21,-361,-351,-353,-362,-450,-420,-453,-458,-460,-448,-439,-437,-457,-445,-450,-433,-535,-532,-659,-666,-638,-589,-729,-709,-29989,-29989,-29989,-29990,-29990,-29991,-29992,-29993,-29993,-29993]} 1. d4 {[%emt 0:00:05]} d5 {[%emt 0:06:28]} 2. Bf4 {[%emt 0:00:13]} c5 {[%emt 0:00:49]} 3. e3 {[%emt 0:00:16][%cal Be2e3,Be3e4][%mdl 32]} Nc6 {[%emt 0:00:10]} 4. c3 {[%emt 0:00:24]} Qb6 {[%emt 0:00:17]} 5. Qb3 {[%emt 0:01:55]} c4 {[%emt 0:00:06]} 6. Qxb6 {[%emt 0:00:15] D00: 1 d4 d5: Unusual lines.} (6. Qc2 $1 $14 {is more appropriate.}) 6... axb6 $11 {[%emt 0:00:01][%cal Ba7b6,Bb6b5,Bb5b4][%mdl 32]} 7. e4 {[%emt 0:03:10]} e6 {[%emt 0:01:14]} 8. Nd2 {[%emt 0:01:43] The position is equal.} b5 {[%emt 0:00:15]} 9. Be2 {[%emt 0:02:16]} b4 {[%emt 0:02:57]} 10. Bf3 {[%emt 0:01:25]} Nf6 {[%emt 0:07:02] [#]} 11. Bg5 $146 {[%emt 0:03:45]} ({Predecessor:} 11. Ne2 b5 12. O-O Be7 13. Rfe1 O-O 14. Bg3 Rd8 15. Nf4 h6 16. h4 Bb7 17. h5 bxc3 18. bxc3 {1-0 (44) Bordi,K (2288)-Lewtak,D (2411) Chess.com INT 2020}) 11... Ra5 {[%emt 0:01:09] Threatens to win with ...dxe4.} 12. Ne2 $2 {[%emt 0:02:58][%mdl 8192] Now White is beyond hope.} (12. exd5 $11 exd5 13. Ne2) 12... dxe4 $19 {[%emt 0:00:47]} 13. Bxf6 {[%emt 0:02:06]} exf3 {[%emt 0:00:07]} ({Not} 13... gxf6 14. Bxe4 bxc3 15. bxc3 $11) 14. Bh4 {[%emt 0:02:59]} fxe2 {[%emt 0:00:17]} 15. Nxc4 {[%emt 0:00:53]} Rh5 {[%emt 0:01:58]} 16. Bg3 {[%emt 0:00:36]} b5 {[%emt 0:00:14]} 17. Nd6+ {[%emt 0:01:21]} Bxd6 {[%emt 0:00:16]} 18. Bxd6 {[%emt 0:00:08]} bxc3 {[%emt 0:00:24]} 19. bxc3 {[%emt 0:00:07]} Ba6 {[%emt 0:01:03]} 20. a4 {[%emt 0:03:04]} Kd7 {[%emt 0:01:17]} 21. Bc5 {[%emt 0:03:31]} bxa4 {[%emt 0:00:37]} 22. Rxa4 {[%emt 0:00:43] [#]} Rb8 $1 {[%emt 0:00:14] ( -> ...Rb1+)} 23. Kd2 {[%emt 0:01:41] [#]} (23. Ra1 Bc4) 23... Rxh2 $3 {[%emt 0:03:51][%mdl 512]} 24. Rxh2 {[%emt 0:05:02]} (24. Re1 Bb5) 24... Rb2+ {[%emt 0:00:05] Black mates.} 25. Kc1 {[%emt 0:00:05]} e1=Q+ {[%emt 0:00:05][%mdl 64] Discovered Attack} 26. Kxb2 {[%emt 0:00:08]} Qd2+ {[%emt 0:00:02]} 27. Kb3 {[%emt 0:00:43]} Qd1+ {[%emt 0:00:07]} 28. Ka3 {[%emt 0:00:32]} Bb5 {[%emt 0:00:03] Weighted Error Value: White=0.86/Black=0.04 (flawless)} 0-1